Workbook

Sheet Month by Month P&L
A2: Last 12 Months Profit and Loss
A3: Last Month of Financials | B3: 2025-12-31
B5: =DATE(YEAR(C5),MONTH(C5)-1,1) -> 2025-01-01 | C5: 2025-02-01 | D5: 2025-03-01 | E5: 2025-04-01 | F5: 2025-05-01 | G5: =DATE(YEAR(H5),MONTH(H5)-1,1) -> 2025-06-01 | H5: 2025-07-01 | I5: 2025-08-01 | J5: 2025-09-01 | K5: 2025-10-01 | L5: =DATE(YEAR(M5),MONTH(M5)-1,1) -> 2025-11-01 | M5: =+B3 -> 2025-12-31 | N5: Total
A6: Income
A7: Gross Potential Rent | B7: 14450 | C7: 14450 | D7: 14450 | E7: 14450 | F7: 14450 | N7: =SUM(B7:M7) -> 72250
A8: Concessions | B8: 0 | C8: 0 | D8: 0 | E8: 0 | F8: 0 | G8: 0 | H8: 0 | I8: 0 | J8: 0 | K8: 0 | L8: 0 | M8: 0 | N8: =SUM(B8:M8) -> 0
A9: Bad Debt | B9: 0 | C9: 0 | D9: 0 | E9: 0 | F9: 0 | G9: 0 | H9: 0 | I9: 0 | J9: 0 | K9: 0 | L9: 0 | M9: 0 | N9: =SUM(B9:M9) -> 0
A11: Other Income
A12: Other Income | B12: 0 | C12: 0 | D12: 0 | E12: 0 | F12: 0 | G12: 0 | H12: 0 | I12: 0 | J12: 0 | K12: 0 | L12: 0 | M12: 0 | N12: =SUM(B12:M12) -> 0
A15: Total Income | B15: =SUM(B7:B13) -> 14450 | C15: 14450 | D15: 14450 | E15: 14450 | F15: 14450 | G15: 0 | H15: 0 | I15: 0 | J15: 0 | K15: 0 | L15: 0 | M15: 0 | N15: =SUM(B15:M15) -> 72250
A17: Expenses
A18: Real Estate Taxes | B18: 2666.66 | C18: 2666.66 | D18: 2666.66 | E18: 2666.66 | F18: 2666.66 | N18: =SUM(B18:M18) -> 13333.3
A19: Insurance | B19: 666 | C19: 666 | D19: 666 | E19: 666 | F19: 666 | N19: =SUM(B19:M19) -> 3330
A20: Trash Removal | B20: 300 | C20: 300 | D20: 300 | E20: 300 | F20: 300 | N20: =SUM(B20:M20) -> 1500
A21: Bldg Maint and Repair | B21: 465 | C21: 843 | D21: 989 | E21: 754 | F21: 976 | N21: =SUM(B21:M21) -> 4027
A22: Gardening and Landscape | B22: 300 | C22: 300 | D22: 300 | E22: 300 | F22: 300 | N22: =SUM(B22:M22) -> 1500
A23: Professional Fees | B23: 120 | C23: 120 | D23: 120 | E23: 120 | F23: 120 | N23: =SUM(B23:M23) -> 600
A25: Total Expenses | B25: =SUM(B18:B23) -> 4517.66 | C25: 4895.66 | D25: 5041.66 | E25: 4806.66 | F25: 5028.66 | G25: 0 | H25: 0 | I25: 0 | J25: 0 | K25: 0 | L25: 0 | M25: 0 | N25: =SUM(B25:M25) -> 24290.3
A27: NOI | B27: =B15-B25 -> 9932.34 | C27: 9554.34 | D27: 9408.34 | E27: 9643.34 | F27: 9421.34 | G27: 0 | H27: 0 | I27: 0 | J27: 0 | K27: 0 | L27: 0 | M27: 0 | N27: =SUM(B27:M27) -> 47959.7
